bitfinex-derivatives/quotes_BNBF0:USTF0_20250303
["timestamp","ask_amount","ask_price","bid_price","bid_amount"]
[1740970465068,5.597,614.82,613.75,1.21664196]
[1740970467974,5.597,614.82,613.79,1.21664196]
[1740970470276,5.597,614.82,613.95,1.21664196]
[1740970473375,5.597,614.82,614.02,1.21664196]
[1740970475580,5.597,614.82,613.97,1.21664196]
[1740970477572,5.597,614.82,613.26,2.47130005]
[1740970477573,5.597,614.82,613.91,1.21664196]
[1740970479781,5.597,614.82,613.96,1.21664196]
[1740970482382,5.597,614.82,613.93,1.21664196]
[1740970482684,5.597,614.82,613.95,0.32575942]
[1740970485083,5.597,614.82,613.97,1.21664196]
[1740970485283,5.597,614.82,613.98,0.3257435]
[1740970488381,5.597,614.82,614.02,1.21664196]
[1740970488579,5.597,614.82,614.03,0.32571698]
[1740970489882,5.597,614.82,614.03,1.54235894]
[1740970492489,5.597,614.82,614.17,1.21664196]
[1740970494393,5.597,614.82,614.03,0.32571698]
[1740970499690,5.597,614.82,614.05,1.21664196]
[1740970502699,5.597,614.82,614.03,0.32571698]
[1740970527618,5.597,614.82,613.84,1.21664196]
[1740970527815,5.597,614.82,613.92,1.21664196]
[1740970529520,5.597,614.82,613.68,1.21664196]
[1740970529820,5.597,614.82,613.69,0.32589744]
[1740970534724,1.69992428,614.81,613.69,0.32589744]
[1740970535316,1.41840856,615.81,613.69,0.32589744]
[1740970535522,1.6999312,614.8,613.69,0.32589744]
[1740970535922,0.32482824,615.71,613.69,0.32589744]
[1740970536123,0.29912564,615.7,613.69,0.32589744]
[1740970536318,0.32488628,615.6,613.69,0.32589744]
[1740970536524,0.29912564,615.59,613.69,0.32589744]
[1740970536717,0.32490212,615.57,613.69,0.32589744]
[1740970537122,0.29912878,615.56,613.69,0.32589744]
[1740970537517,0.32491795,615.54,613.69,0.32589744]
[1740970537719,0.29912878,615.53,613.69,0.32589744]
[1740970537922,0.32493379,615.51,613.69,0.32589744]
[1740970538224,4.16412878,615.5,613.69,0.32589744]
[1740970538426,0.29912878,615.49,613.69,0.32589744]
[1740970538729,0.2991326,615.48,613.69,0.32589744]
[1740970538921,0.32495491,615.47,613.69,0.32589744]
[1740970539125,0.2991326,615.46,613.69,0.32589744]
[1740970539328,0.32497075,615.44,613.69,0.32589744]
[1740970539528,0.2991326,615.43,613.69,0.32589744]
[1740970539729,0.32498659,615.41,613.69,0.32589744]
[1740970539929,0.2991326,615.4,613.69,0.32589744]
[1740970540125,0.32500243,615.38,613.69,0.32589744]
[1740970540322,0.2991326,615.37,613.69,0.32589744]
[1740970541128,0.32501828,615.35,613.69,0.32589744]
[1740970541329,0.2991326,615.34,613.69,0.32589744]
[1740970541530,0.32503412,615.32,613.69,0.32589744]
[1740970541722,0.2991326,615.31,613.69,0.32589744]
[1740970541923,0.29912012,615.3,613.69,0.32589744]
[1740970542123,0.32505525,615.28,613.69,0.32589744]
[1740970542428,0.29912146,615.27,613.69,0.32589744]
[1740970543330,0.3250711,615.25,613.69,0.32589744]
[1740970543724,0.29912581,615.24,613.69,0.32589744]
[1740970543929,0.32508696,615.22,613.69,0.32589744]
[1740970544129,0.29912581,615.21,613.69,0.32589744]
[1740970544325,0.32509752,615.2,613.69,0.32589744]
[1740970544525,0.29912581,615.19,613.69,0.32589744]
[1740970545929,0.32510809,615.18,613.69,0.32589744]
[1740970546130,0.29912581,615.17,613.69,0.32589744]
[1740970546329,0.32511866,615.16,613.69,0.32589744]
[1740970546625,0.29912581,615.15,613.69,0.32589744]
[1740970546830,0.32512923,615.14,613.69,0.32589744]
[1740970547033,0.29912581,615.13,613.69,0.32589744]
[1740970547230,0.32513981,615.12,613.69,0.32589744]
[1740970547426,0.29912581,615.11,613.69,0.32589744]
[1740970547630,0.32515038,615.1,613.69,0.32589744]
[1740970547830,0.29912581,615.09,613.69,0.32589744]
[1740970548031,0.32516095,615.08,613.69,0.32589744]
[1740970548333,0.29912581,615.07,613.69,0.32589744]
[1740970548634,0.32517152,615.06,613.69,0.32589744]
[1740970548834,0.29912581,615.05,613.69,0.32589744]
[1740970549030,0.3251821,615.04,613.69,0.32589744]
[1740970550527,0.29913388,615.03,613.69,0.32589744]
[1740970550728,0.32519267,615.02,613.69,0.32589744]
[1740970552533,0.32519267,615.02,613.69,1.5425394]
[1740970552938,0.29913431,615.01,613.69,1.5425394]
[1740970553233,0.32519267,615.02,613.69,1.5425394]
[1740970553738,1.69976514,615.01,613.69,1.5425394]
[1740970554433,1.291,615.0,613.69,1.5425394]
[1740970554834,1.291,615.0,613.69,0.32589744]
[1740970556535,1.6996337,614.99,613.69,0.32589744]
[1740970556941,1.6996337,614.99,613.71,1.21664196]
[1740970557242,1.6996337,614.99,613.72,0.3258815]
[1740970558541,1.6996337,614.99,613.73,1.21664196]
[1740970558841,1.6996337,614.99,613.74,0.32587088]
[1740970559441,1.453,614.98,613.74,0.32587088]
[1740970559638,3.15259911,614.98,613.74,0.32587088]
[1740970561242,1.453,614.98,613.74,0.32587088]
[1740970561443,1.377,614.97,613.74,0.32587088]
[1740970561643,2.282,614.97,613.74,1.54251284]
[1740970564144,2.282,614.97,613.87,1.21664196]
[1740970566845,2.282,614.97,613.86,1.21664196]
[1740970569240,2.282,614.97,613.87,1.21664196]
[1740970572341,2.282,614.97,613.91,1.21664196]
[1740970575348,2.282,614.97,613.88,1.21664196]
[1740970577849,2.282,614.97,613.87,1.21664196]
[1740970578449,0.905,614.97,613.87,1.21664196]
[1740970581055,0.899,614.96,613.87,1.21664196]
[1740970581855,1.323,614.95,613.87,1.21664196]
[1740970582652,1.69968212,614.94,613.87,1.21664196]
[1740970583957,0.32524027,614.93,613.87,1.21664196]
[1740970584257,0.32524027,614.93,613.74,0.32587088]
[1740970584258,0.32524027,614.93,613.77,1.21664196]
[1740970586458,0.29919575,614.92,613.77,1.21664196]
[1740970586759,0.32525084,614.91,613.77,1.21664196]
[1740970586955,0.29919575,614.9,613.77,1.21664196]
[1740970587156,0.32526142,614.89,613.74,0.32587088]
[1740970587360,0.29919575,614.88,613.74,0.32587088]
[1740970587561,0.325272,614.87,613.74,0.32587088]
[1740970587859,0.29919575,614.86,613.74,0.32587088]
[1740970588060,0.32528258,614.85,613.74,0.32587088]
[1740970589564,1.70010422,614.84,613.74,0.32587088]
[1740970589760,0.32529317,614.83,613.74,0.32587088]
[1740970590764,1.43829317,614.83,613.74,0.32587088]
[1740970592567,1.70035343,614.82,613.74,0.32587088]
[1740970595474,2.52429317,614.83,613.74,0.32587088]
[1740970597677,1.70038112,614.82,613.74,0.32587088]
[1740970598274,2.52429317,614.83,613.74,0.32587088]
[1740970598676,1.70027727,614.81,613.74,0.32587088]
[1740970599479,0.29919942,614.8,613.74,0.32587088]
[1740970602181,1.70027727,614.81,613.74,0.32587088]
[1740970602680,0.29921048,614.8,613.74,0.32587088]
[1740970604184,0.29923119,614.79,613.74,0.32587088]
[1740970604386,0.29923119,614.78,613.74,0.32587088]
[1740970604585,1.70024266,614.78,613.74,0.32587088]
[1740970607490,2.52429317,614.83,613.74,0.32587088]
[1740970607690,1.70023574,614.77,613.74,0.32587088]
[1740970609986,1.747,614.76,613.74,0.32587088]
[1740970610586,1.70015267,614.75,613.74,0.32587088]
[1740970612891,1.074,614.74,613.74,0.32587088]
[1740970616791,1.70009038,614.73,613.74,0.32587088]
[1740970620990,1.441,614.72,613.74,0.32587088]
[1740970622989,1.099,614.71,613.74,0.32587088]
[1740970624997,1.184,614.7,613.74,0.32587088]
[1740970627093,2.545,614.7,613.74,0.32587088]
[1740970631496,2.545,614.7,613.75,1.21664196]
[1740970631700,2.545,614.7,613.76,0.32586027]
[1740970635300,3.539,614.7,613.76,0.32586027]
[1740970650201,4.757,614.7,613.76,0.32586027]
[1740970651903,4.757,614.7,613.87,1.21664196]
[1740970652105,4.757,614.7,613.88,0.32579657]
[1740970654101,4.757,614.7,614.08,1.21664196]
[1740970655708,4.757,614.7,613.88,0.32579657]
[1740970668316,4.757,614.7,613.84,1.21664196]
[1740970668616,4.757,614.7,613.86,1.21664196]
[1740970670214,6.205,614.7,613.86,1.21664196]
[1740970672918,6.205,614.7,613.84,1.21664196]
[1740970675621,6.205,614.7,613.9,1.21664196]
[1740970678120,6.205,614.7,613.91,1.21664196]
[1740970680722,6.205,614.7,613.88,1.21664196]
[1740970683424,6.205,614.7,613.85,1.21664196]
[1740970685825,6.205,614.7,613.72,1.21664196]
[1740970688123,6.205,614.7,613.57,1.21664196]
[1740970690025,6.205,614.7,613.48,1.21664196]
[1740970691629,6.205,614.7,613.45,1.21664196]
[1740970695625,6.205,614.7,613.46,0.32601962]
[1740970698031,6.205,614.7,613.5,1.21664196]
[1740970698235,6.205,614.7,613.51,0.32599305]
[1740970700937,6.205,614.7,613.59,1.21664196]
[1740970701135,6.205,614.7,613.6,0.32594524]
[1740970712542,6.205,614.7,613.64,1.21664196]
[1740970712742,6.205,614.7,613.65,0.32591868]
[1740970715446,6.205,614.7,613.72,1.21664196]
[1740970718247,6.205,614.7,613.64,1.21664196]
[1740970720843,6.205,614.7,613.74,1.21664196]
[1740970725550,6.205,614.7,613.78,1.21664196]
[1740970727455,6.205,614.7,613.83,1.21664196]
[1740970730158,6.205,614.7,613.82,1.21664196]
[1740970733257,6.205,614.7,613.86,1.21664196]
[1740970735963,6.205,614.7,613.2,2.47130005]
[1740970735964,6.205,614.7,613.88,1.21664196]
[1740970738475,6.205,614.7,613.81,1.21664196]
[1740970738675,6.205,614.7,613.82,0.32582841]
[1740970767091,6.205,614.7,613.89,1.21664196]
[1740970767295,6.205,614.7,613.9,0.32578595]
[1740970769601,6.205,614.7,613.94,1.21664196]
[1740970769799,6.205,614.7,613.95,0.32575942]
[1740970789819,6.205,614.7,613.96,1.21664196]
[1740970792120,6.205,614.7,613.97,1.21664196]
[1740970795022,6.205,614.7,613.76,1.21664196]
[1740970797327,6.205,614.7,613.39,1.21043268]
[1740970797328,6.205,614.7,613.73,1.21664196]
[1740970800729,6.205,614.7,613.67,1.21664196]
[1740970803425,6.205,614.7,613.88,1.21664196]
[1740970806634,6.205,614.7,613.91,1.21664196]
[1740970808634,6.205,614.7,613.89,1.21664196]
[1740970810935,6.205,614.7,613.8,1.21664196]
[1740970813735,6.205,614.7,614.04,1.21664196]
[1740970816039,6.205,614.7,614.06,1.21664196]
[1740970816436,6.205,614.7,614.07,0.32569576]
[1740970826443,4.987,614.7,614.07,0.32569576]
[1740970828251,3.539,614.7,614.07,0.32569576]
[1740970828549,2.178,614.7,614.07,0.32569576]
[1740970829148,0.994,614.7,614.07,0.32569576]
[1740970829349,1.41840856,616.13,614.07,0.32569576]
[1740970829549,0.32465951,616.03,614.07,0.32569576]
[1740970829749,0.2989723,616.02,614.07,0.32569576]
[1740970829946,0.32467532,616.0,614.07,0.32569576]
[1740970830149,0.2989723,615.99,614.07,0.32569576]
[1740970830350,0.32469113,615.97,614.07,0.32569576]
[1740970830552,0.2989723,615.96,614.07,0.32569576]
[1740970830846,0.32470695,615.94,614.07,0.32569576]
[1740970831052,0.29897242,615.93,614.07,0.32569576]
[1740970831351,0.32472276,615.91,614.07,0.32569576]
[1740970831651,0.29897242,615.9,614.07,0.32569576]
[1740970831847,0.32473858,615.88,614.07,0.32569576]
[1740970832051,0.29897242,615.87,614.07,0.32569576]
[1740970832253,0.3247544,615.85,614.07,0.32569576]
[1740970832548,1.48297242,615.84,614.07,0.32569576]
[1740970832752,0.32477022,615.82,614.15,1.21664196]
[1740970833047,0.29897242,615.81,614.15,1.21664196]
[1740970833255,0.32478604,615.79,614.15,1.21664196]
[1740970833454,0.29897242,615.78,614.15,1.21664196]
[1740970833752,0.32480187,615.76,614.15,1.21664196]
[1740970833954,0.29897242,615.75,614.15,1.21664196]
[1740970834255,0.32481769,615.73,614.15,1.21664196]
[1740970834448,0.29897242,615.72,614.15,1.21664196]
[1740970834652,0.32483352,615.7,614.15,1.21664196]
[1740970834850,0.29897242,615.69,614.15,1.21664196]
[1740970835148,0.29897242,615.68,614.15,1.21664196]
[1740970835351,0.29897242,615.67,614.15,1.21664196]
[1740970835551,0.29897242,615.67,614.07,0.32569576]
[1740970835552,0.29897242,615.69,614.22,1.21664196]
[1740970835752,0.29897242,615.68,614.22,1.21664196]
[1740970836052,0.29897242,615.67,614.22,1.21664196]
[1740970836247,0.29897242,615.66,614.22,1.21664196]
[1740970836553,0.29897242,615.65,614.22,1.21664196]
[1740970838653,0.29897242,615.65,602.04,14.4433236]
[1740970838654,0.29897242,615.65,614.25,1.21664196]
[1740970840354,0.955,615.66,614.25,1.21664196]
[1740970841757,0.955,615.66,614.22,1.21664196]
[1740970843860,1.69796821,615.65,614.22,1.21664196]
[1740970844457,0.955,615.66,614.22,1.21664196]
[1740970845453,0.955,615.66,614.18,1.21664196]
[1740970847959,0.955,615.66,613.22,2.47130005]
[1740970847960,0.955,615.66,614.09,1.21664196]
[1740970849158,1.431,615.65,614.09,1.21664196]
[1740970850160,1.431,615.65,614.01,1.21664196]
[1740970852462,1.431,615.65,614.04,1.21664196]
[1740970852856,1.69828585,615.64,614.04,1.21664196]
[1740970855069,1.69828585,615.64,614.05,1.21664196]
[1740970857066,1.69828585,615.64,613.1,2.47130005]
[1740970857067,1.69828585,615.64,614.07,1.21664196]
[1740970859470,1.69828585,615.64,613.77,1.21977107]
[1740970859471,1.431,615.65,614.0,1.21664196]
[1740970861370,1.431,615.65,614.02,0.32572228]
[1740970861570,1.431,615.65,614.03,1.21664196]
[1740970861967,1.69805106,615.64,614.03,1.21664196]
[1740970862474,1.431,615.65,614.03,1.21664196]
[1740970862969,1.195,615.64,614.05,0.32570637]
[1740970863974,1.195,615.64,614.16,1.21664196]
[1740970864776,2.017,615.63,614.16,1.21664196]
[1740970865278,2.017,615.63,614.18,0.32563743]
[1740970866081,2.017,615.63,614.25,1.21664196]
[1740970866380,2.017,615.63,614.27,0.32558972]
[1740970867480,2.017,615.63,614.27,1.54223168]
[1740970869785,2.017,615.63,614.32,1.21664196]
[1740970870083,2.017,615.63,614.33,0.32555792]
[1740970871085,0.29882773,615.62,614.33,0.32555792]
[1740970871481,2.017,615.63,614.33,0.32555792]
[1740970872082,2.017,615.63,614.36,1.21664196]
[1740970872886,2.017,615.63,614.37,0.32553672]
[1740970873988,2.017,615.63,614.43,1.21664196]
[1740970874190,2.017,615.63,614.44,0.32549964]
[1740970876789,2.017,615.63,614.53,1.21664196]
[1740970878192,2.017,615.63,614.53,1.54209393]
[1740970879187,2.017,615.63,614.53,0.32545197]
[1740970880293,1.387,615.62,614.53,0.32545197]
[1740970884292,1.077,615.61,614.53,0.32545197]
[1740970890195,1.077,615.61,614.55,1.21664196]
[1740970891997,1.421,615.6,614.55,1.21664196]
[1740970892602,1.421,615.6,614.56,0.32543608]
[1740970892997,1.455,615.59,614.56,0.32543608]
[1740970896997,1.316,615.58,614.56,0.32543608]
[1740970898400,2.657,615.58,614.56,0.32543608]
[1740970907610,0.29887739,615.57,614.56,0.32543608]
[1740970909809,2.657,615.58,614.56,0.32543608]
[1740970910005,0.29886683,615.57,614.56,0.32543608]
[1740970910713,1.69818917,615.56,614.56,0.32543608]
[1740970912312,1.498,615.55,614.56,0.32543608]
[1740970913209,0.2988479,615.54,614.56,0.32543608]
[1740970914214,1.498,615.55,614.56,0.32543608]
[1740970915414,1.501,615.54,614.56,0.32543608]
[1740970926620,1.802,615.53,614.56,0.32543608]
[1740970930323,1.41,615.52,614.56,0.32543608]
[1740970930520,2.802,615.52,614.56,0.32543608]
[1740970942435,1.35,615.51,614.56,0.32543608]
[1740970947345,1.35,615.51,614.67,1.21664196]
[1740970948841,1.35,615.51,614.56,0.32543608]
[1740970948842,1.35,615.51,614.63,1.21664196]
[1740970949043,1.35,615.51,614.64,0.32539372]
[1740970950543,1.35,615.51,614.66,1.21664196]
[1740970951349,1.35,615.51,614.66,1.54202509]
[1740970951551,1.462,615.5,614.66,1.54202509]
[1740970952853,1.591,615.49,614.67,1.21664196]
[1740970955853,1.591,615.49,614.66,0.32538313]
[1740970962761,1.248,615.48,614.66,0.32538313]
[1740970963261,1.005,615.47,614.71,1.21664196]
[1740970965661,1.005,615.47,614.66,0.32538313]
[1740970968066,0.971,615.46,614.66,0.32538313]
[1740970969666,1.002,615.45,614.66,0.32538313]
[1740970975570,1.002,615.45,614.71,1.21664196]
[1740970976869,2.104,615.45,614.71,1.21664196]
[1740970978469,2.104,615.45,614.79,1.21664196]
[1740970981167,3.288,615.45,614.8,1.21664196]
[1740970984180,3.288,615.45,614.78,1.21664196]
[1740970986280,3.288,615.45,614.66,0.32538313]
[1740970989879,3.288,615.45,614.33,1.21664196]
[1740970990078,3.288,615.45,614.33,1.54219988]
[1740970991783,1.69827204,615.44,614.33,1.54219988]
[1740970992183,1.69827204,615.44,614.33,0.32555792]
[1740970997583,2.286,615.45,614.33,0.32555792]
[1740970997784,1.69830657,615.43,614.33,0.32555792]
[1740970998384,1.395,615.42,614.33,0.32555792]
[1740970999884,1.472,615.41,614.33,0.32555792]
[1740971002284,1.45602467,615.41,614.33,0.32555792]
[1740971003185,1.396,615.4,614.33,0.32555792]
[1740971003586,0.914,615.39,614.33,0.32555792]
[1740971003885,1.395,615.38,614.33,0.32555792]
[1740971012393,1.395,615.38,614.35,1.21664196]
[1740971012589,1.395,615.38,614.36,0.32554202]
[1740971014994,1.395,615.38,614.39,1.21664196]
[1740971015193,1.395,615.38,614.4,0.32552083]
[1740971016501,1.395,615.38,614.43,1.21664196]
[1740971018003,0.914,615.39,614.43,1.21664196]
[1740971019797,0.914,615.39,614.4,0.32552083]
[1740971019798,0.914,615.39,614.4,1.54216279]
[1740971024601,1.31,615.38,614.4,1.54216279]
[1740971024806,3.00818226,615.38,614.4,1.54216279]
[1740971025807,1.216,615.37,614.4,1.54216279]
[1740971026207,1.216,615.37,614.4,0.32552083]
[1740971027611,1.441,615.36,614.4,0.32552083]
[1740971028413,1.441,615.36,614.43,1.21664196]
[1740971031414,1.49,615.35,614.43,1.21664196]
[1740971032914,1.49,615.35,614.51,1.21664196]
[1740971036218,1.49,615.35,614.42,1.21664196]
[1740971038616,1.49,615.35,614.4,1.21664196]
[1740971040520,1.326,615.34,614.4,1.21664196]
[1740971041422,1.326,615.34,614.17,1.21977107]
[1740971041423,1.326,615.34,614.39,1.21664196]
[1740971043620,1.326,615.34,613.76,2.47130005]
[1740971043621,1.326,615.34,614.25,1.21664196]
[1740971045223,1.326,615.34,614.18,1.21664196]
[1740971047627,0.959,615.33,614.18,1.21664196]
[1740971047826,0.959,615.33,614.24,1.21664196]
[1740971049426,0.29895741,615.32,614.24,1.21664196]
[1740971050029,0.29897285,615.31,614.24,1.21664196]
[1740971050227,0.29897285,615.3,614.22,1.21664196]
[1740971050422,0.29897285,615.29,614.22,1.21664196]
[1740971050621,0.29897285,615.28,614.22,1.21664196]
[1740971050926,0.29897285,615.27,614.22,1.21664196]
[1740971051127,0.959,615.33,614.22,1.21664196]
[1740971051324,0.29895582,615.32,614.22,1.21664196]
[1740971051630,0.959,615.33,614.22,1.21664196]
[1740971052828,0.959,615.33,614.14,1.21664196]
[1740971055133,0.959,615.33,614.09,1.21664196]
[1740971057435,0.959,615.33,613.98,1.21664196]
[1740971057925,0.959,615.33,613.99,0.3257382]
[1740971059026,2.095,615.33,613.99,0.3257382]
[1740971063334,2.095,615.33,614.12,1.21664196]
[1740971063730,2.095,615.33,614.13,0.32566394]
[1740971064839,2.095,615.33,614.25,1.21664196]
[1740971067240,2.095,615.33,614.29,1.21664196]
[1740971069539,2.095,615.33,614.28,1.21664196]
[1740971070140,2.095,615.33,614.29,0.32557912]
[1740971072044,3.618,615.33,614.29,0.32557912]
[1740971072844,1.69838946,615.32,614.29,0.32557912]
[1740971075646,2.845,615.33,614.29,0.32557912]
[1740971078950,1.6984309,615.32,614.29,0.32557912]
[1740971081658,2.845,615.33,614.29,0.32557912]
[1740971081857,1.69847235,615.31,614.29,0.32557912]
[1740971082655,0.978,615.3,614.29,0.32557912]
[1740971084364,1.338,615.29,614.29,0.32557912]
[1740971084964,1.69848617,615.28,614.29,0.32557912]
[1740971087565,1.338,615.29,614.29,0.32557912]
[1740971089066,1.054,615.28,614.29,0.32557912]
[1740971090360,0.995,615.27,614.29,0.32557912]
[1740971101472,0.978,615.3,614.29,0.32557912]
[1740971102974,1.69901135,615.29,614.29,0.32557912]
[1740971104172,1.599,615.28,614.29,0.32557912]
[1740971108982,1.69900444,615.27,614.29,0.32557912]
[1740971111683,0.29900396,615.26,614.29,0.32557912]
[1740971111877,1.69919109,615.26,614.29,0.32557912]
[1740971112079,0.29901024,615.25,614.29,0.32557912]
[1740971112682,0.29901024,615.25,613.8,1.21664196]
[1740971112981,0.29901024,615.25,613.81,0.32583372]
[1740971113183,0.62408134,615.25,613.81,0.32583372]
[1740971113384,0.29901024,615.24,613.81,0.32583372]
[1740971114377,0.62408663,615.24,613.81,0.32583372]
[1740971114583,0.29901024,615.23,613.81,0.32583372]
[1740971114783,0.32508696,615.22,613.81,0.32583372]
[1740971114983,0.29901024,615.21,613.81,0.32583372]
[1740971115188,0.2990702,615.2,613.81,0.32583372]
[1740971115382,0.2990702,615.19,613.81,0.32583372]
[1740971115782,0.32510809,615.18,613.81,0.32583372]
[1740971115982,0.2990702,615.17,613.9,1.21664196]
[1740971116183,0.32510809,615.18,613.9,1.21664196]
[1740971116385,0.29903169,615.17,613.9,1.21664196]
[1740971117885,1.69930864,615.16,613.9,1.21664196]
[1740971119788,1.69930864,615.16,613.81,0.32583372]
[1740971120382,1.223,615.15,613.81,0.32583372]
[1740971120991,1.69957144,615.14,613.81,0.32583372]
[1740971121488,1.03,615.13,613.81,0.32583372]
[1740971123586,0.29907011,615.12,613.81,0.32583372]
[1740971123894,1.99866922,615.12,613.81,0.32583372]
[1740971124093,0.29907011,615.11,613.81,0.32583372]
[1740971124288,0.29907011,615.11,613.67,1.21664196]
[1740971125095,1.304,615.1,613.67,1.21664196]
[1740971125390,1.57507011,615.09,613.67,1.21664196]
[1740971125595,1.276,615.09,613.67,1.21664196]
[1740971126094,0.2990825,615.08,613.67,1.21664196]
[1740971127094,1.69968212,615.07,613.67,1.21664196]
[1740971127294,0.2990825,615.06,613.67,1.21664196]
[1740971127695,0.2990825,615.06,612.82,2.47130005]
[1740971127696,0.2990825,615.06,613.75,1.21664196]
[1740971129490,0.2990825,615.06,613.72,1.21664196]
[1740971129893,1.99878538,615.05,613.72,1.21664196]
[1740971130096,0.2990825,615.04,613.72,1.21664196]
[1740971130294,1.7570825,615.04,613.72,1.21664196]
[1740971130496,0.2990825,615.03,613.72,1.21664196]
[1740971131199,1.458,615.04,613.72,1.21664196]
[1740971131392,0.29911165,615.03,613.72,1.21664196]
[1740971131997,0.29911165,615.03,613.67,1.21664196]
[1740971133000,1.69975822,615.02,613.67,1.21664196]
[1740971133200,0.29911165,615.01,613.67,1.21664196]
[1740971135000,0.29911165,615.01,613.68,1.21664196]
[1740971135805,0.29911165,615.03,613.68,1.21664196]
[1740971135997,0.29911165,615.02,613.68,1.21664196]
[1740971136196,1.458,615.04,613.68,1.21664196]
[1740971138102,1.69984817,615.03,613.68,1.21664196]
[1740971138403,1.69984817,615.03,613.39,1.21664196]
[1740971138596,1.458,615.04,613.39,1.21664196]
[1740971138801,0.29917614,615.03,613.39,1.21664196]
[1740971139003,1.70016652,615.02,613.39,1.21664196]
[1740971139196,0.29917614,615.01,613.39,1.21664196]
[1740971139401,1.70016652,615.02,613.39,1.21664196]
[1740971140405,0.29918243,615.01,613.39,1.21664196]
[1740971140704,1.70016652,615.02,613.39,1.21664196]
[1740971140898,0.29918273,615.01,613.39,1.21664196]
[1740971141099,1.70016652,615.02,613.39,1.21664196]
[1740971141302,0.29917862,615.01,613.39,1.21664196]
[1740971141505,0.29917862,615.01,613.05,1.21977107]
[1740971141506,0.29917862,615.01,613.36,1.21664196]
[1740971143501,0.29917862,615.01,613.4,1.21664196]
[1740971144907,1.70006961,615.0,613.4,1.21664196]
[1740971145106,0.29917862,614.99,613.4,1.21664196]
[1740971146011,0.29917862,614.99,612.7,1.45251921]
[1740971146012,0.29917862,614.99,613.58,1.21664196]
[1740971147306,0.29917862,614.99,613.59,0.32595055]
[1740971147808,1.70006961,615.0,613.59,0.32595055]
[1740971148113,0.299129,614.99,613.63,1.21664196]
[1740971148314,1.70006961,615.0,613.64,0.32592399]
[1740971148909,0.29912906,614.99,613.64,0.32592399]
[1740971149410,1.70006961,615.0,613.64,0.32592399]
[1740971149611,0.29912936,614.99,613.64,0.32592399]
[1740971149813,1.70006961,615.0,613.64,0.32592399]
[1740971150711,1.458,615.04,613.68,1.21664196]
[1740971150908,1.6997859,614.99,613.69,0.32589744]
[1740971151408,0.29912987,614.98,613.69,0.32589744]
[1740971153518,0.29912987,614.98,613.73,1.21664196]
[1740971153719,0.29912987,614.98,613.74,0.32587088]
[1740971153919,1.99888118,614.97,613.74,0.32587088]
[1740971154219,1.69975131,614.97,613.74,0.32587088]
[1740971154418,0.29912273,614.96,613.74,0.32587088]
[1740971155619,1.388,614.95,613.74,0.32587088]
[1740971155813,1.388,614.95,613.78,1.21664196]
[1740971157413,0.29912336,614.94,613.78,1.21664196]
[1740971159015,0.29912336,614.94,613.74,0.32587088]
[1740971159016,0.29912336,614.94,613.8,1.21664196]
[1740971161918,0.29912336,614.94,613.74,0.32587088]
[1740971161919,0.29912336,614.94,613.88,1.21664196]
[1740971162921,1.69971671,614.93,613.88,1.21664196]
[1740971163124,0.29912336,614.92,613.88,1.21664196]
[1740971163725,0.938,614.91,613.88,1.21664196]
[1740971163925,0.29912336,614.9,613.88,1.21664196]
[1740971164220,1.81612336,614.9,613.88,1.21664196]
[1740971164426,0.29912336,614.89,613.93,1.21664196]
[1740971165124,1.517,614.9,613.93,1.21664196]
[1740971165324,0.29912197,614.89,613.93,1.21664196]
[1740971166527,0.29912197,614.89,613.95,1.21664196]
[1740971168425,1.517,614.9,613.95,1.21664196]
[1740971168627,1.517,614.9,613.93,1.21664196]
[1740971169023,1.69970288,614.89,613.93,1.21664196]
[1740971171125,1.69970288,614.89,613.89,1.21664196]
[1740971171728,1.517,614.9,613.89,1.21664196]
[1740971172027,1.69975131,614.88,613.89,1.21664196]
[1740971172621,1.045,614.87,613.89,1.21664196]
[1740971173227,1.045,614.87,613.89,1.54243322]
[1740971173824,1.045,614.87,613.89,0.32579126]
[1740971175029,1.69980666,614.86,613.89,0.32579126]
[1740971177631,1.045,614.87,613.89,0.32579126]
[1740971177932,1.69994504,614.85,613.89,0.32579126]
[1740971180530,1.69994504,614.85,613.68,1.21664196]
[1740971180725,1.045,614.87,613.68,1.21664196]
[1740971180927,3.47917344,614.84,613.68,1.21664196]
[1740971181324,0.29921922,614.83,613.68,1.21664196]
[1740971181527,3.47917344,614.84,613.68,1.21664196]
[1740971181728,0.29921592,614.83,613.68,1.21664196]